Cogmind - Beta 15 @@@ ROGUE MODE // 2025.08.01 @ 08:36:48 Player: Koba Result: Destroyed by MX-G2J(R) with Subdweller Laser Performance ------------- Evolutions (0) 0 Regions Visited (3) 600 Robots Destroyed (29) 145 Value Destroyed (491) 491 Prototype IDs (3) 60 Alien Tech Used (0) 0 Bonus (0) 0 TOTAL SCORE: 1296 Bonus ------- None Cogmind --------- Core Integrity 0/250 Matter 249/300 Energy 125/125 System Corruption 0% Temperature Cool (6) Movement Treading (260) Ox1 Location -10/Subcaves Parts ------- > --- POWER (1) -------- Light Ion Engine > --- PROPULSION (2) --- Spiked Treads > --- UTILITY (2) ------ Large Storage Unit Seismic Detector > --- WEAPON (2) ------- Subdweller Machine Gun Battle Cannon > --- INVENTORY (15) --- Light Nuclear Core Flight Unit Flight Unit Flight Unit Flight Unit Huge Storage Unit Structural Scanner Subdweller Optics ECM Suite Scrap Shield Assault Rifle Light Assault Rifle Grenade Launcher Mining Laser Peak State ------------ > --- POWER ------------ Light Ion Engine > --- PROPULSION ------- Light Treads Spiked Treads > --- UTILITY ---------- Large Storage Unit Seismic Detector > --- WEAPON ----------- Subdweller Machine Gun Battle Cannon > --- INVENTORY -------- Light Nuclear Core Flight Unit Flight Unit Flight Unit Flight Unit Huge Storage Unit Structural Scanner Subdweller Optics ECM Suite Scrap Shield Light Assault Rifle Light Assault Rifle Grenade Launcher Mining Laser [Rating: 12] Favorites ----------- Power Ion Engine Engine Ion Engine Propulsion Light Treads Treads Light Treads Utility Seismic Detector Device Seismic Detector Storage Large Storage Unit Weapon Assault Rifle Energy Gun EM Pulse Gun Ballistic Gun Assault Rifle Ballistic Cannon Battle Cannon Launcher Grenade Launcher Special Weapon Mining Laser Build | -11 -10 -10 -10 ------- Run | Yrd Mat Min Sub Slots Evolved . | . . . . Power . | . . . . Propulsion . | . . . . Utility . | . . . . Weapon . | . . . . Parts Attached 19 | 7 7 2 3 Power 2 | 1 . 1 . Engine 2 | 1 . 1 . Core . | . . . . Reactor . | . . . . Propulsion 3 | 2 . . 1 Treads 3 | 2 . . 1 Leg . | . . . . Wheel . | . . . . Hover . | . . . . Flight . | . . . . Utility 5 | 2 3 . . Device 2 | 1 1 . . Storage 3 | 1 2 . . Processor . | . . . . Hackware . | . . . . Protection . | . . . . Artifact . | . . . . Weapon 9 | 2 4 1 2 Energy Gun 2 | 1 1 . . Energy Cannon . | . . . . Ballistic Gun 4 | 1 2 . 1 Ballistic Cannon 1 | . . . 1 Launcher 1 | . . 1 . Special Weapon 1 | . 1 . . Impact Weapon . | . . . . Slashing Weapon . | . . . . Piercing Weapon . | . . . . Special Melee Weapon . | . . . . Unidentified Prototypes . | . . . . Parts Lost 4 | . . 3 1 Power 1 | . . 1 . Propulsion 2 | . . 1 1 Utility . | . . . . Weapon 1 | . . 1 . Highest Loss Streak 2 | . . 2 1 To Critical Strikes . | . . . . Average Backups 11 | 5 9 14 13 Power . | . 1 1 1 Propulsion 3 | 3 2 5 4 Utility 3 | . 2 4 4 Weapon 3 | . 3 4 3 Tool/Special . | . . . . Unused Backups 17 | . 5 . 12 Power 1 | . . . 1 Propulsion 9 | . 4 . 5 Utility 6 | . 1 . 5 Weapon 1 | . . . 1 Tool/Special . | . . . . Average Slot Usage (%) 97 | . 99 95 92 Engine 13 | . 14 13 14 Treads 25 | . 27 25 21 Device 14 | . 14 14 14 Storage 14 | . 14 14 14 Energy Gun 7 | . 11 1 . Ballistic Gun 14 | . 14 18 14 Ballistic Cannon 1 | . . . 5 Launcher 3 | . . 7 8 Special Weapon 1 | . 2 . . Peak Build Rating 12 | 7 8 8 12 Average Rating 8 | 5 7 7 9 On Entrance 5 | . 7 8 7 Naked Turns . | . . . . Heaviest Build 90 | 15 90 30 31 Greatest Support 40 | 40 40 40 40 Greatest Overweight (x) 2 | 2 2 1 1 Average Overweight (x) . | . . . . Largest Inventory Capacity 25 | 8 25 15 15 Average Capacity 13 | 7 12 15 15 Most Carried 15 | 7 15 15 15 Average Carried 11 | 5 9 14 14 Final Capacity 15 | 8 15 15 15 Final Carried 15 | 7 15 14 15 Class Distribution -------------------- 100% | Mutant Dominant Class ---------------- Mutant | -10/Materials Mutant | -10/Mines Mutant | -10/Subcaves Resources | -11 -10 -10 -10 ----------- Run | Yrd Mat Min Sub Matter Collected 658 | 309 180 96 73 Remotely . | . . . . Salvage Created 618 | 135 317 143 23 Parts 43 | 11 19 13 . Haulers Intercepted 1 | . 1 . . Recyclers Shooed 1 | 1 . . . Parts Field Recycled . | . . . . Retrieved Matter . | . . . . Parts Self-Destructed 1 | . . . 1 Prevented . | . . . . Kills | -11 -10 -10 -10 ------- Run | Yrd Mat Min Sub Combat Hostiles Destroyed 19 | . 10 8 1 Guns 12 | . 9 2 1 AOE 7 | . 1 6 . Classes Destroyed 8 | 2 5 . 1 Worker 2 | . 2 . . Tunneler 5 | 4 . 1 . Hauler 1 | . 1 . . Recycler 1 | 1 . . . Watcher 1 | . 1 . . Swarmer 12 | . 6 6 . Grunt 6 | . 4 2 . Subdweller 1 | . . . 1 Best Kill Streak 6 | 3 6 4 1 Combat Bots Only 4 | . 4 3 1 Max Kills in Single Turn 2 | 1 1 2 1 Gunslinging . | . . . . Exploded 2 | . 1 2 . Melee . | . . . . Uniques/NPCs Destroyed . | . . . . Combat | -11 -10 -10 -10 -------- Run | Yrd Mat Min Sub Hostile Shots Fired 85 | . 38 29 18 Missed 24 | . 8 6 10 Hits 61 | . 30 23 8 Projectile 61 | . 30 23 8 Critical Strikes 2 | . 1 1 . Damage Taken 975 | . 438 304 233 Core 252 | . 153 51 48 Absorbed by Shields . | . . . . Regen/Repaired (Parts) 69 | . 69 . . Core Remaining (%) 100 | 100 . . . Volleys Fired 75 | 13 38 15 9 Largest 2 | 2 2 2 2 Hottest 100 | 70 100 60 63 Shots Fired 137 | 26 68 26 17 Gun 116 | 26 60 22 8 Cannon 8 | . . . 8 Launcher 5 | . . 4 1 Special 8 | . 8 . . Kinetic 77 | 13 30 18 16 Thermal 32 | 13 19 . . Explosive 5 | . . 4 1 Electromagnetic 23 | . 19 4 . Robot Hit Streak 14 | 5 14 5 8 Robot Miss Streak 8 | 8 4 3 3 Penetration Max . | . . . . Secondary Targets . | . . . . Shots Hit Robots 74 | 11 36 17 10 Core Hits 37 | 6 16 13 2 Critical Kills . | . . . . Critical Parts Destroyed 1 | . . 1 . Critical Strikes 6 | 2 3 1 . Burn 4 | 2 2 . . Destroy 1 | . . 1 . Corrupt 1 | . 1 . . Melee Attacks . | . . . . Impact . | . . . . Slashing . | . . . . Piercing . | . . . . Sneak Attacks . | . . . . Combat Hostiles . | . . . . Follow-up Attacks . | . . . . Damage Inflicted 1491 | 136 731 467 157 Guns 842 | 136 464 178 64 Cannons 93 | . . . 93 Explosions 506 | . 217 289 . Melee . | . . . . Ramming 26 | . 26 . . Kinetic 602 | 75 233 137 157 Thermal 353 | 61 292 . . Explosive 289 | . . 289 . Electromagnetic 221 | . 180 41 . Impact . | . . . . Slashing . | . . . . Piercing . | . . . . Highest Corruption . | . . . . Average Corruption . | . . . . Corruption Purged . | . . . . Corruption Blocked . | . . . . Overload Shots . | . . . . Overflow Damage 3 | . . 3 . Projectiles . | . . . . Explosions 3 | . . 3 . Melee . | . . . . Knockbacks 3 | . . . 3 Impact . | . . . . Kinetic 3 | . . . 3 Secondary . | . . . . Self-Inflicted Damage 132 | . 130 2 . Shots 4 | . 3 1 . Rammed 1 | . 1 . . Targets Rammed 2 | . 2 . . Kicked . | . . . . Crushed 1 | . 1 . . Highest Temperature 84 | 36 84 66 . Average Temperature 23 | 12 26 25 . Received Heat Transfer 345 | . 126 162 57 Siege Activations . | . . . . Martial Activations . | . . . . Shielding Activations . | . . . . Robots Disrupted . | . . . . Combat Hostiles . | . . . . Robots Corrupted . | . . . . Combat Hostiles . | . . . . Parts Fried . | . . . . Impact Corruptions . | . . . . Robots Melted . | . . . . Combat Hostiles . | . . . . Parts Melted 3 | 2 1 . . Heat Transferred 879 | 333 546 . . Parts Sabotaged . | . . . . Parts Stolen . | . . . . Parts Stripped . | . . . . Power Chain Reactions 2 | . 2 . . Alert | -11 -10 -10 -10 ------- Run | Yrd Mat Min Sub Maximum Alert Level . | . . . . Low Security (%) 100 | 100 100 100 . Level 1 . | . . . . Level 2 . | . . . . Level 3 . | . . . . Level 4 . | . . . . Level 5 . | . . . . High Security . | . . . . Max Security . | . . . . Peak Influence 158 | 10 158 138 . Initial 42 | . . 42 . Average 46 | 1 47 66 . Influence Increases 692 | 25 441 226 . Destroy 0b10 Robot/C 360 | . 200 160 . Destroy 0b10 Robot/NC 50 | 25 20 5 . Destroy Leader 64 | . 34 30 . Successful Hack 30 | . 30 . . Disable Machine 60 | . 60 . . Destroy Structure 68 | . 37 31 . Lose Combat Pursuer 60 | . 60 . . Influence Decreases 692 | 25 333 216 118 Entered New Map 128 | . . 66 62 Time Decay 534 | 25 333 120 56 Lost Part 30 | . . 30 . Squads Dispatched 1 | . 1 . . Investigation . | . . . . Extermination . | . . . . Reinforcement 1 | . 1 . . Assault . | . . . . Garrison . | . . . . Intercept . | . . . . Searches Triggered . | . . . . Construction Impeded . | . . . . Haulers Reinforced . | . . . . Active Scanning Responses . | . . . . Cargo Convoy Interrupts . | . . . . Stealth | -11 -10 -10 -10 --------- Run | Yrd Mat Min Sub Distress Signals 1 | . 1 . . Communications Jammed . | . . . . Distress Signals . | . . . . Times Spotted 32 | . 21 8 3 Peak Tracking Total 5 | . 5 3 2 Tactical Retreats 2 | . 2 . . Traps | -11 -10 -10 -10 ------- Run | Yrd Mat Min Sub Traps Triggered 1 | . . . 1 Indirectly . | . . . . Trap Hack Attempts . | . . . . Triggered . | . . . . Disarmed . | . . . . Reprogrammed . | . . . . Reused . | . . . . Traps Extracted . | . . . . Installed . | . . . . Triggered . | . . . . Machines | -11 -10 -10 -10 ---------- Run | Yrd Mat Min Sub Machines Disabled 4 | . 4 . . Max in Single Turn 2 | . 2 . . Machines Repaired . | . . . . Machines Dismantled . | . . . . Machines Sabotaged . | . . . . Overloaded Fab Kills . | . . . . Hacking | -11 -10 -10 -10 --------- Run | Yrd Mat Min Sub Machines Accessed 9 | . 9 . . Terminals 6 | . 6 . . Fabricators . | . . . . Repair Stations 1 | . 1 . . Recycling Units 2 | . 2 . . Scanalyzers . | . . . . Garrison Access . | . . . . Total Hacks 19 | . 19 . . Successful 13 | . 13 . . Failed 6 | . 6 . . Catastrophic . | . . . . Database Lockouts . | . . . . Manual 1 | . 1 . . Terminals 10 | . 10 . . Fabricators . | . . . . Repair Stations 2 | . 2 . . Recycling Units 7 | . 7 . . Scanalyzers . | . . . . Garrison Access . | . . . . Terminal Hacks 6 | . 6 . . Record 1 | . 1 . . Prototype ID Bank 2 | . 2 . . Emergency Access Points 1 | . 1 . . Hauler Manifests 1 | . 1 . . Registered Prototypes 1 | . 1 . . Fabricator Hacks . | . . . . Repair Station Hacks 2 | . 2 . . Scan Component 1 | . 1 . . Repair 1 | . 1 . . Recycling Unit Hacks 4 | . 4 . . Process 1 | . 1 . . Report Inventory 2 | . 2 . . Retrieve Components 1 | . 1 . . Scanalyzer . | . . . . Garrison Access Hacks . | . . . . Unauthorized Hacks 1 | . 1 . . Terminals 1 | . 1 . . Botnet 1 | . 1 . . Fabricators . | . . . . Repair Stations . | . . . . Recycling Units . | . . . . Scanalyzers . | . . . . Garrison Access . | . . . . Data Cores Recovered . | . . . . Used . | . . . . Hacking Detections 4 | . 4 . . Full Trace Events . | . . . . Feedback Events . | . . . . Feedback Blocked . | . . . . Robot Schematics Acquired . | . . . . Robots Built . | . . . . Authchips . | . . . . Time . | . . . . Total Robot Build Rating . | . . . . Part Schematics Acquired . | . . . . Parts Built . | . . . . Authchips . | . . . . Time . | . . . . Total Part Build Rating . | . . . . Parts Repaired 1 | . 1 . . Time 26 | . 26 . . Parts Recycled . | . . . . Recycled Matter . | . . . . Retrieved Matter . | . . . . Retrieved Components . | . . . . Parts Scanalyzed . | . . . . Part Schematics Acquired . | . . . . Parts Damaged . | . . . . Bothacking | -11 -10 -10 -10 ------------ Run | Yrd Mat Min Sub Used RIF Installer . | . . . . Robots Hacked . | . . . . Non-combat . | . . . . Combat . | . . . . Robot Hacks Applied . | . . . . Relay Couplers Released . | . . . . Fabnet Peak Effective % . | . . . . Robots Rewired . | . . . . Allies Hacked . | . . . . Hacks Repelled . | . . . . Allies | -11 -10 -10 -10 -------- Run | Yrd Mat Min Sub Total Allies . | . . . . Largest Group . | . . . . Highest-Rated Group . | . . . . Highest-Rated Ally . | . . . . Total Orders . | . . . . Ally Attacks . | . . . . Total Damage . | . . . . Kills . | . . . . Allies Corrupted . | . . . . Allies Melted . | . . . . Intel | -11 -10 -10 -10 ------- Run | Yrd Mat Min Sub Active Infowar (turns) 2288 | 35 1353 252 648 Seismic 2288 | 35 1353 252 648 Robot Analysis Total . | . . . . Derelict Logs Recovered . | . . . . Drone Launches . | . . . . Drone Recoveries . | . . . . Exploration | -11 -10 -10 -10 ------------- Run | Yrd Mat Min Sub Turns Passed 2421 | 168 1353 252 648 Spaces Moved 1217 | 72 707 121 317 Core 7 | 7 . . . Treads 1210 | 65 707 121 317 Legs . | . . . . Wheels . | . . . . Hover . | . . . . Flight . | . . . . Fastest Speed 50 | 50 160 160 160 Average Speed 169 | 156 160 172 190 Slowest Speed 320 | 160 320 240 240 Overloaded Moves . | . . . . Propulsion Burnouts . | . . . . Robots Hopped . | . . . . Potential Cave-ins . | . . . . Cave-ins Triggered . | . . . . Exploration Rate (%) 41 | 5 95 24 42 Regions Visited 3 Branch Regions 2 Pre-discovered Areas . | . . . . Known Exits Taken . | . . . . Unknown Exits Taken 3 | 1 1 1 . Scrap Searched . | . . . . Spaces Dug 6 | . 6 . . Terrain Destroyed 88 | . 48 37 3 Melee . | . . . . Projectile 6 | . 6 . . AOE 82 | . 42 37 3 Terrain Rammed . | . . . . Walls Destroyed . | . . . . Machines Disabled . | . . . . Actions | -11 -10 -10 -10 --------- Run | Yrd Mat Min Sub Total 1423 | 98 842 139 344 Wait 66 | . 60 . 6 Move 1214 | 71 706 120 317 Hop . | . . . . Pick Up 27 | 7 15 1 4 Fast Attach 10 | 7 1 . 2 Attach 2 | . . 2 . Detach . | . . . . Swap 12 | . 10 1 1 Drop 15 | . 10 . 5 Fire 75 | 13 38 15 9 Melee . | . . . . Ram . | . . . . Kick . | . . . . Crush 2 | . 2 . . Escape Stasis . | . . . . Rewire . | . . . . Trap . | . . . . Miscellaneous . | . . . . Route ------- -11/Scrapyard -10/Materials (discovered 4 exits: [*Mat x3] / [*Min]) -10/Mines -10/Subcaves (discovered 1 exit: [*Mat]) History --------- Turn | Location | Event 13 | -11/Scrapyard | Discovered new exit (range 15) 169 | -11/Scrapyard | Entered Materials 303 | -10/Materials | Build established: Mutant 371 | -10/Materials | Discovered new exit (range 7) 504 | -10/Materials | Discovered new exit (range 6) 609 | -10/Materials | Repaired Lgt. Treads 1070 | -10/Materials | Discovered new exit (range 14) 1195 | -10/Materials | Core integrity fell below 50% 1335 | -10/Materials | Discovered new exit (range 10) 1522 | -10/Materials | Entered Mines 1729 | -10/Mines | Core integrity fell below 20% 1748 | -10/Mines | Discovered new exit (range 11) 1774 | -10/Mines | Entered Subcaves 1941 | -10/Subcaves | Shifting Twisted Machinery released Sub. Beam Cannon 1943 | -10/Subcaves | Shifting Twisted Machinery released Sub. Monowheel 1944 | -10/Subcaves | Shifting Twisted Machinery released Battle Cannon 1957 | -10/Subcaves | Shifting Twisted Machinery released Sub. Optics 2001 | -10/Subcaves | Discovered new exit (range 11) 2057 | -10/Subcaves | Shifting Twisted Machinery released Spk. Treads 2057 | -10/Subcaves | Shifting Twisted Machinery released Sub. Optics 2422 | -10/Subcaves | Destroyed by MX-G2J(R) with Subdweller Laser Last Messages --------------- 02294_ Subatomizers dissect the Sub. Monowheel. 02375_ 9V-EM0(h) triggered Piercing Trap. 02375_ Spikes shoot up from the floor. 02375_ 9V-EM0(h) suffers critical hit (Impale). 02377_ Triggered Piercing Trap. 02377_ Spikes shoot up from the floor. 02377_ Critical hit (Impale). 02379_ 9V-EM0(h) triggered Piercing Trap. 02379_ Spikes shoot up from the floor. 02379_ 9V-EM0(h) suffers critical hit (Impale). 02383_ 9V-EM0(h) triggered Piercing Trap. 02383_ Spikes shoot up from the floor. 02383_ 9V-EM0(h) suffers critical hit (Impale). 02396_ HV Slug penetrates Wall. 02402_ 9V-EM0(h) destroyed. 02402_ 2G-R3I(R) knocked back. 02418_ Lgt. Treads destroyed. 02420_ 2G-R3I(R) destroyed. Map ----- +----------------------------------------------------+ | ?????????????????????????????????????????????????? | | ?????????????????????????????????????????????????? | | ?????????????????????????????????????????????????? | | ?????????????????????????????????????????????????? | | ?????????????????????????????????????????????????? | | ?????????????????????????????????????????????????? | | ?????????????????????????????????????????????????? | | ?????????????????????????????????????????????????? | | ?????????????????????????????????????????????????? | | ?????????????????????????????????????????????????? | | ??????????????????#??????????????????????????????? | | ?????????????????? ###???????????????????????????? | | ?????????????????? #??????????????????????????? | | ?????????????????? ##?????????##??????????????? | | ??????????????????# #???????## ####???????????? | | ??????????????????# ???????? "????????????? | | ?????????????????? ##?????? ??????????????? | | ??????????????????# ####??? ???????????????? | | ?????????????????? ##? ???????????????? | | #???????####?###### #? ##% ????????????????? | | ####????#^ ### # #### ??????????????????? | | ##???#^ ## # ## ?? #????????????????? | | ##### ## R;## #?????????????????? | | ## ^ ;;; %&#?????????????????? | | # =#! % #?????????????????? | | ^ ![%* @ ####?????????????????? | | ## #### ;;##????????????????????? | | #### ######^### #??#####?????????????????????? | | ???#####????###?#####????????????????????????????? | | ?????????????????????????????????????????????????? | | ?????????????????????????????????????????????????? | | ?????????????????????????????????????????????????? | | ?????????????????????????????????????????????????? | | ?????????????????????????????????????????????????? | | ?????????????????????????????????????????????????? | | ?????????????????????????????????????????????????? | | ?????????????????????????????????????????????????? | | ?????????????????????????????????????????????????? | | ?????????????????????????????????????????????????? | | ?????????????????????????????????????????????????? | | ?????????????????????????????????????????????????? | | ?????????????????????????????????????????????????? | | ?????????????????????????????????????????????????? | | | | | | | | | | | | | | | +----------------------------------------------------+ Best States ------------- Heat Dissipation 25 Energy Generation 10 Energy Capacity 250 Matter Stores 300 Matter Capacity 300 Sight Range 16 Terrain Scan Density 10 Evasion (%) 40 Recoil Reduction 2 Item Schematics ----------------- None Robot Schematics ------------------ None Fabricated ------------ Nothing Repaired ---------- Lgt. Treads | 50% | -10/Materials Alien Tech Used ----------------- None Achievements -------------- Shopping List Challenges ------------ None Game ------ Seed ThermicIonNetwork Manual? 0 Play Time 00:28:59 Cumulative 9.8 hours Start 2025.08.01 @ 07:51:37 End 2025.08.01 @ 08:36:48 Sessions 3 Manual Loads 0 Difficulty Rogue Special Mode None Game No. 13 Rogue 13 Adventurer 0 Explorer 0 Win Type - Total 0 Types 0/0/0/0/0/0/0/0/0/0 Lore% 17 Gallery% 10 Achievement% 14 Wizard Run 0 Options --------- Layout 1 ASCII 0 Keyboard 1 Movement Numpad Keybinds 0 Fullscreen 2 Font 24/Smallcaps Map View 50x35 Zoom Use 0% Tactical HUD 1 Map Filters NONE Filters NONE Steam 1 RUN: 937d0232-8df9-4443-aa25-f53fa289819c